[Event "Early-Titled-Tuesday-Blitz-March-05-2024"]
[Site "Chess.com"]
[Date "2024.03.05"]
[Round "6"]
[White "DeArron_Fox"]
[Black "luckyswitchback"]
[Result "1-0"]
[WhiteElo "2519"]
[BlackElo "2660"]
[TimeControl "180+1"]
[EndTime "9:10:17 PST"]
[Termination "DeArron_Fox won by checkmate"]

1. d4 {[%clk 0:02:51.2]} 1... d5 {[%clk 0:02:59.8]} 2. c4 {[%clk 0:02:51.6]}
2... e6 {[%clk 0:03:00.1]} 3. Nc3 {[%clk 0:02:51.6]} 3... c5 {[%clk 0:03:00.4]}
4. cxd5 {[%clk 0:02:51.1]} 4... cxd4 {[%clk 0:02:56.8]} 5. Qa4+ {[%clk
0:02:51.6]} 5... Bd7 {[%clk 0:02:56.7]} 6. Qxd4 {[%clk 0:02:52.1]} 6... exd5
{[%clk 0:02:56.2]} 7. Qxd5 {[%clk 0:02:53]} 7... Nf6 {[%clk 0:02:56.4]} 8. Qd1
{[%clk 0:02:53.6]} 8... Bc5 {[%clk 0:02:55]} 9. Nf3 {[%clk 0:02:51.4]} 9... Nc6
{[%clk 0:02:55]} 10. a3 {[%clk 0:02:45.7]} 10... Qe7 {[%clk 0:02:44.7]} 11. Bg5
{[%clk 0:02:34.9]} 11... h6 {[%clk 0:02:35.7]} 12. Nd5 {[%clk 0:02:26.8]} 12...
Bxf2+ {[%clk 0:01:50]} 13. Kxf2 {[%clk 0:02:23.1]} 13... Qc5+ {[%clk 0:01:49.9]}
14. e3 {[%clk 0:01:58.4]} 14... Nxd5 {[%clk 0:01:42.6]} 15. Rc1 {[%clk
0:01:53.2]} 15... Qb6 {[%clk 0:01:41.3]} 16. Qxd5 {[%clk 0:01:50.9]} 16... Qxb2+
{[%clk 0:01:36.2]} 17. Be2 {[%clk 0:01:48.9]} 17... hxg5 {[%clk 0:01:34.1]} 18.
Rb1 {[%clk 0:01:42.4]} 18... Qf6 {[%clk 0:01:28.7]} 19. Rxb7 {[%clk 0:01:38.8]}
19... Rd8 {[%clk 0:01:28.4]} 20. Bb5 {[%clk 0:00:48.2]} 20... O-O {[%clk
0:00:35.8]} 21. Rxd7 {[%clk 0:00:44.8]} 21... Rxd7 {[%clk 0:00:36.7]} 22. Qxd7
{[%clk 0:00:45.1]} 22... Ne5 {[%clk 0:00:36.7]} 23. Qd4 {[%clk 0:00:23.3]} 23...
Rb8 {[%clk 0:00:26.8]} 24. Qxe5 {[%clk 0:00:21.9]} 24... Qd8 {[%clk 0:00:22.2]}
25. Rd1 {[%clk 0:00:16.4]} 25... Qf8 {[%clk 0:00:21.6]} 26. Qxg5 {[%clk
0:00:11.1]} 26... g6 {[%clk 0:00:16.9]} 27. Bd3 {[%clk 0:00:11]} 27... Rb6
{[%clk 0:00:14.3]} 28. h4 {[%clk 0:00:10.9]} 28... Qxa3 {[%clk 0:00:11]} 29. h5
{[%clk 0:00:08.3]} 29... Qb3 {[%clk 0:00:11.4]} 30. Rd2 {[%clk 0:00:06.3]} 30...
Qe6 {[%clk 0:00:09.7]} 31. hxg6 {[%clk 0:00:06.8]} 31... fxg6 {[%clk 0:00:10]}
32. Qd8+ {[%clk 0:00:06.1]} 32... Kg7 {[%clk 0:00:10.2]} 33. Be2 {[%clk
0:00:06.4]} 33... Rb7 {[%clk 0:00:10]} 34. Qd5 {[%clk 0:00:05.7]} 34... Qe7
{[%clk 0:00:08.4]} 35. Qe5+ {[%clk 0:00:06.1]} 35... Qxe5 {[%clk 0:00:08.4]} 36.
Nxe5 {[%clk 0:00:07]} 36... a5 {[%clk 0:00:09.1]} 37. Ra2 {[%clk 0:00:06.3]}
37... Ra7 {[%clk 0:00:09.5]} 38. Nc6 {[%clk 0:00:06.7]} 38... Rc7 {[%clk
0:00:09.3]} 39. Nxa5 {[%clk 0:00:06.8]} 39... g5 {[%clk 0:00:10.2]} 40. Nc4
{[%clk 0:00:06.4]} 40... g4 {[%clk 0:00:10.3]} 41. Ne5 {[%clk 0:00:05.4]} 41...
g3+ {[%clk 0:00:10.7]} 42. Kxg3 {[%clk 0:00:05.8]} 42... Kh8 {[%clk 0:00:11.2]}
43. Bf3 {[%clk 0:00:05.7]} 43... Rg7+ {[%clk 0:00:10.9]} 44. Kf4 {[%clk
0:00:05.7]} 44... Re7 {[%clk 0:00:11]} 45. Ra8+ {[%clk 0:00:06.1]} 45... Kg7
{[%clk 0:00:11.1]} 46. Rd8 {[%clk 0:00:05]} 46... Re6 {[%clk 0:00:11.2]} 47.
Rd7+ {[%clk 0:00:04.6]} 47... Kh8 {[%clk 0:00:11.1]} 48. Bd5 {[%clk 0:00:04.5]}
48... Rf6+ {[%clk 0:00:11.2]} 49. Kg3 {[%clk 0:00:02.9]} 49... Ra6 {[%clk
0:00:05.6]} 50. Rd8+ {[%clk 0:00:03.3]} 50... Kg7 {[%clk 0:00:05.7]} 51. Rd7+
{[%clk 0:00:04]} 51... Kh8 {[%clk 0:00:06.1]} 52. Ng6+ {[%clk 0:00:04.6]} 52...
Rxg6+ {[%clk 0:00:05.3]} 53. Kf3 {[%clk 0:00:04]} 53... Rg3+ {[%clk 0:00:04.3]}
54. Kf2 {[%clk 0:00:02.5]} 54... Rg6 {[%clk 0:00:03.3]} 55. Rd8+ {[%clk
0:00:02.8]} 55... Kh7 {[%clk 0:00:02.9]} 56. Be4 {[%clk 0:00:02.5]} 56... Kg7
{[%clk 0:00:02.5]} 57. Bxg6 {[%clk 0:00:03.4]} 57... Kf6 {[%clk 0:00:02.3]} 58.
Rd4 {[%clk 0:00:04.3]} 58... Kg5 {[%clk 0:00:02.6]} 59. Kf3 {[%clk 0:00:05.2]}
59... Kh6 {[%clk 0:00:03.2]} 60. g4 {[%clk 0:00:06.1]} 60... Kg5 {[%clk
0:00:03.9]} 61. Bf5 {[%clk 0:00:06]} 61... Kh4 {[%clk 0:00:04.6]} 62. Rd6 {[%clk
0:00:05.6]} 62... Kg5 {[%clk 0:00:05.2]} 63. Rg6+ {[%clk 0:00:06]} 63... Kh4
{[%clk 0:00:05.9]} 64. e4 {[%clk 0:00:04.8]} 64... Kh3 {[%clk 0:00:06.3]} 65.
Rh6# {[%clk 0:00:05.7]} 1-0

[Event "Early-Titled-Tuesday-Blitz-March-05-2024"]
[Site "Chess.com"]
[Date "2024.03.05"]
[Round "6"]
[White "TigrVShlyape"]
[Black "chucksterf10"]
[Result "1-0"]
[WhiteElo "2858"]
[BlackElo "2576"]
[TimeControl "180+1"]
[EndTime "9:10:20 PST"]
[Termination "TigrVShlyape won by resignation"]

1. e4 {[%clk 0:03:00.9]} 1... a6 {[%clk 0:02:57.8]} 2. d4 {[%clk 0:03:00.3]}
2... c6 {[%clk 0:02:58.1]} 3. c4 {[%clk 0:02:59.6]} 3... d5 {[%clk 0:02:58.4]}
4. e5 {[%clk 0:02:57.7]} 4... Bf5 {[%clk 0:02:57.1]} 5. Nc3 {[%clk 0:02:57.2]}
5... e6 {[%clk 0:02:57.3]} 6. h4 {[%clk 0:02:54.1]} 6... h5 {[%clk 0:02:54.1]}
7. Bg5 {[%clk 0:02:51.1]} 7... Be7 {[%clk 0:02:54.4]} 8. Qd2 {[%clk 0:02:37.7]}
8... Nd7 {[%clk 0:02:47.6]} 9. Nf3 {[%clk 0:02:36.7]} 9... dxc4 {[%clk
0:02:41.3]} 10. Bxc4 {[%clk 0:02:35.7]} 10... Nb6 {[%clk 0:02:42]} 11. Bd3
{[%clk 0:02:22.9]} 11... Bxd3 {[%clk 0:02:34.5]} 12. Qxd3 {[%clk 0:02:22.3]}
12... Nh6 {[%clk 0:02:35.2]} 13. O-O {[%clk 0:02:20.2]} 13... Nf5 {[%clk
0:02:34.9]} 14. Ne4 {[%clk 0:02:10.3]} 14... O-O {[%clk 0:02:28]} 15. Rad1
{[%clk 0:02:08.3]} 15... Nxh4 {[%clk 0:02:17.3]} 16. Bxe7 {[%clk 0:01:10.7]}
16... Qxe7 {[%clk 0:02:18.2]} 17. Nfg5 {[%clk 0:01:04.1]} 17... Nf5 {[%clk
0:02:09.4]} 18. Qh3 {[%clk 0:01:03.4]} 18... g6 {[%clk 0:01:55.3]} 19. g4 {[%clk
0:01:02.1]} 19... Nd5 {[%clk 0:01:31.6]} 20. gxf5 {[%clk 0:00:58.6]} 20... exf5
{[%clk 0:01:31.6]} 21. Nf6+ {[%clk 0:00:57.1]} 21... Nxf6 {[%clk 0:01:32.3]} 22.
exf6 {[%clk 0:00:56.9]} 22... Qxf6 {[%clk 0:01:33.2]} 23. Nf3 {[%clk 0:00:51.2]}
23... f4 {[%clk 0:01:30.8]} 24. Rfe1 {[%clk 0:00:50]} 24... Rad8 {[%clk
0:01:28.9]} 25. Re5 {[%clk 0:00:48.9]} 25... Rd5 {[%clk 0:01:20.2]} 26. Rxd5
{[%clk 0:00:47.3]} 26... cxd5 {[%clk 0:01:21.1]} 27. Re1 {[%clk 0:00:47.4]}
27... Qd6 {[%clk 0:00:59.4]} 28. Qh4 {[%clk 0:00:43.5]} 28... Rc8 {[%clk
0:00:57.2]} 29. Qg5 {[%clk 0:00:37.7]} 29... Rc2 {[%clk 0:00:37.4]} 30. Re7
{[%clk 0:00:19.1]} 30... Rc1+ {[%clk 0:00:28.3]} 31. Kg2 {[%clk 0:00:19]} 31...
Rc7 {[%clk 0:00:29.2]} 32. Re8+ {[%clk 0:00:16.5]} 32... Kg7 {[%clk 0:00:29.4]}
33. Ne5 {[%clk 0:00:16.7]} 33... f3+ {[%clk 0:00:19.5]} 34. Nxf3 {[%clk
0:00:14.4]} 34... f6 {[%clk 0:00:11.5]} 35. Qe3 {[%clk 0:00:12.1]} 35... g5
{[%clk 0:00:11.8]} 36. Nxg5 {[%clk 0:00:09.6]} 36... fxg5 {[%clk 0:00:12.7]} 37.
Qxg5+ {[%clk 0:00:09.2]} 37... Qg6 {[%clk 0:00:10.2]} 38. Qxg6+ {[%clk
0:00:05.1]} 38... Kxg6 {[%clk 0:00:10.5]} 39. Re6+ {[%clk 0:00:05.6]} 39... Kf5
{[%clk 0:00:09.7]} 40. Re5+ {[%clk 0:00:05.7]} 40... Kf4 {[%clk 0:00:09.6]} 41.
Rxd5 {[%clk 0:00:06]} 41... h4 {[%clk 0:00:09.7]} 42. Rd6 {[%clk 0:00:04.8]}
42... Ke4 {[%clk 0:00:06]} 43. Rh6 {[%clk 0:00:04.2]} 43... Rc2 {[%clk
0:00:04.2]} 44. Rxh4+ {[%clk 0:00:04]} 44... Kd5 {[%clk 0:00:04.8]} 45. Rh5+
{[%clk 0:00:01.7]} 45... Kxd4 {[%clk 0:00:05]} 46. Rh4+ {[%clk 0:00:02.1]} 46...
Kd5 {[%clk 0:00:05.3]} 47. Rb4 {[%clk 0:00:02.1]} 47... b5 {[%clk 0:00:05.3]}
48. Kg3 {[%clk 0:00:02.6]} 48... Kc5 {[%clk 0:00:04.5]} 49. Rb3 {[%clk
0:00:02.9]} 49... a5 {[%clk 0:00:04.3]} 50. Rc3+ {[%clk 0:00:03.2]} 50... Rxc3+
{[%clk 0:00:04]} 51. bxc3 {[%clk 0:00:04]} 51... Kc4 {[%clk 0:00:02.5]} 52. f4
{[%clk 0:00:04.7]} 52... Kxc3 {[%clk 0:00:02]} 53. f5 {[%clk 0:00:05.3]} 53...
Kb2 {[%clk 0:00:02.7]} 54. f6 {[%clk 0:00:05.8]} 54... Kxa2 {[%clk 0:00:03.6]}
55. f7 {[%clk 0:00:06.4]} 55... b4 {[%clk 0:00:04.3]} 56. f8=Q {[%clk
0:00:06.8]} 56... b3 {[%clk 0:00:04.1]} 57. Qf7 {[%clk 0:00:06.9]} 57... a4
{[%clk 0:00:04.2]} 58. Qc4 {[%clk 0:00:07]} 58... a3 {[%clk 0:00:04.4]} 59. Kf3
{[%clk 0:00:07.2]} 59... Kb2 {[%clk 0:00:05]} 60. Qd4+ {[%clk 0:00:07.3]} 60...
Kc2 {[%clk 0:00:05.2]} 61. Qc4+ {[%clk 0:00:06.8]} 61... Kb2 {[%clk 0:00:05.3]}
62. Ke2 {[%clk 0:00:07.2]} 62... a2 {[%clk 0:00:05.6]} 63. Qd4+ {[%clk
0:00:07.4]} 63... Kb1 {[%clk 0:00:05.2]} 64. Qd3+ {[%clk 0:00:07.8]} 64... Kb2
{[%clk 0:00:05.5]} 65. Qd2+ {[%clk 0:00:07.6]} 65... Ka3 {[%clk 0:00:06]} 66.
Qc3 {[%clk 0:00:07.7]} 66... Ka4 {[%clk 0:00:04.5]} 67. Qb2 {[%clk 0:00:08.2]}
67... Kb4 {[%clk 0:00:04.8]} 68. Kd3 {[%clk 0:00:08.6]} 68... Ka4 {[%clk
0:00:05.4]} 69. Kc3 {[%clk 0:00:09]} 69... a1=Q {[%clk 0:00:06.1]} 70. Qxa1+
{[%clk 0:00:09]} 70... Kb5 {[%clk 0:00:07]} 71. Kxb3 {[%clk 0:00:09.4]} 1-0

[Event "Early-Titled-Tuesday-Blitz-March-05-2024"]
[Site "Chess.com"]
[Date "2024.03.05"]
[Round "6"]
[White "HATilay"]
[Black "mbchess97"]
[Result "1-0"]
[WhiteElo "2684"]
[BlackElo "2506"]
[TimeControl "180+1"]
[EndTime "9:10:25 PST"]
[Termination "HATilay won by resignation"]

1. e4 {[%clk 0:03:00.9]} 1... c5 {[%clk 0:02:59.9]} 2. Nf3 {[%clk 0:03:00.2]}
2... d6 {[%clk 0:02:59.8]} 3. d4 {[%clk 0:03:00.7]} 3... cxd4 {[%clk 0:03:00.6]}
4. Nxd4 {[%clk 0:03:01.4]} 4... Nf6 {[%clk 0:03:01.1]} 5. Nc3 {[%clk 0:03:02.1]}
5... a6 {[%clk 0:02:57.7]} 6. Be2 {[%clk 0:03:02.2]} 6... e6 {[%clk 0:02:55.7]}
7. O-O {[%clk 0:03:01.7]} 7... Be7 {[%clk 0:02:56]} 8. f4 {[%clk 0:03:02.2]}
8... Qb6 {[%clk 0:02:50.9]} 9. Kh1 {[%clk 0:03:01.3]} 9... e5 {[%clk 0:02:44.5]}
10. fxe5 {[%clk 0:02:47.1]} 10... dxe5 {[%clk 0:02:44.6]} 11. Nf5 {[%clk
0:02:47]} 11... Bxf5 {[%clk 0:02:40.7]} 12. Rxf5 {[%clk 0:02:46.8]} 12... Nc6
{[%clk 0:02:38.2]} 13. Nd5 {[%clk 0:02:30.9]} 13... Qd8 {[%clk 0:02:16.4]} 14.
Bg5 {[%clk 0:02:30]} 14... Nxe4 {[%clk 0:01:55]} 15. Bxe7 {[%clk 0:02:28.3]}
15... Nxe7 {[%clk 0:01:52.7]} 16. Nxe7 {[%clk 0:02:07]} 16... Qxe7 {[%clk
0:01:40.2]} 17. Qd5 {[%clk 0:01:46.6]} 17... Nf6 {[%clk 0:01:20.2]} 18. Qxe5
{[%clk 0:01:46.8]} 18... Rd8 {[%clk 0:01:02.6]} 19. Bf3 {[%clk 0:01:36.1]} 19...
Qxe5 {[%clk 0:00:45.7]} 20. Rxe5+ {[%clk 0:01:35.5]} 20... Kf8 {[%clk
0:00:46.1]} 21. Bxb7 {[%clk 0:01:26.3]} 21... Rb8 {[%clk 0:00:46.1]} 22. Bxa6
{[%clk 0:01:26.3]} 22... Rxb2 {[%clk 0:00:46.2]} 23. Bd3 {[%clk 0:01:25.7]}
23... g6 {[%clk 0:00:45.5]} 24. a4 {[%clk 0:01:25.6]} 24... Kg7 {[%clk
0:00:42.8]} 25. a5 {[%clk 0:01:25.1]} 25... Nd7 {[%clk 0:00:42.1]} 26. Rd5
{[%clk 0:01:20.6]} 26... Rhb8 {[%clk 0:00:35.6]} 27. h3 {[%clk 0:01:18.5]} 27...
Nf6 {[%clk 0:00:34.9]} 28. Rc5 {[%clk 0:01:14.5]} 28... Nd7 {[%clk 0:00:28.6]}
29. Rc7 {[%clk 0:00:52.2]} 29... Ne5 {[%clk 0:00:28]} 30. a6 {[%clk 0:00:52.7]}
30... Nxd3 {[%clk 0:00:26]} 31. cxd3 {[%clk 0:00:53.3]} 31... Rb1+ {[%clk
0:00:24.9]} 32. Rxb1 {[%clk 0:00:53.1]} 32... Rxb1+ {[%clk 0:00:24.9]} 33. Kh2
{[%clk 0:00:53.6]} 33... Ra1 {[%clk 0:00:23]} 34. a7 {[%clk 0:00:54.1]} 34...
Kf6 {[%clk 0:00:22.5]} 35. Kg3 {[%clk 0:00:49.2]} 35... h5 {[%clk 0:00:20.7]}
36. Kf4 {[%clk 0:00:49.2]} 36... Ke6 {[%clk 0:00:20.2]} 37. Ke4 {[%clk
0:00:48.6]} 37... f6 {[%clk 0:00:19.4]} 38. d4 {[%clk 0:00:48.1]} 38... Ra4
{[%clk 0:00:18.3]} 39. Rb7 {[%clk 0:00:46.9]} 39... Kd6 {[%clk 0:00:16.4]} 40.
Kd3 {[%clk 0:00:44.7]} 40... Kd5 {[%clk 0:00:15.8]} 41. Rd7+ {[%clk 0:00:38]}
41... Kc6 {[%clk 0:00:15.9]} 42. Rg7 {[%clk 0:00:32]} 42... Kd5 {[%clk
0:00:14.4]} 43. Rxg6 {[%clk 0:00:32.4]} 43... Rxa7 {[%clk 0:00:14.1]} 44. Rxf6
{[%clk 0:00:32.2]} 44... Ra3+ {[%clk 0:00:14.2]} 45. Ke2 {[%clk 0:00:31.6]}
45... Kxd4 {[%clk 0:00:14.1]} 46. Rf5 {[%clk 0:00:32.1]} 46... h4 {[%clk
0:00:13.1]} 47. Rf4+ {[%clk 0:00:32.2]} 47... Ke5 {[%clk 0:00:12.7]} 48. Rxh4
{[%clk 0:00:32.8]} 48... Kf5 {[%clk 0:00:12.8]} 49. Rg4 {[%clk 0:00:32.3]} 49...
Rb3 {[%clk 0:00:12.2]} 50. Kf2 {[%clk 0:00:32.6]} 50... Rc3 {[%clk 0:00:12.2]}
51. Rg8 {[%clk 0:00:32]} 51... Rb3 {[%clk 0:00:12.5]} 52. Rf8+ {[%clk
0:00:32.3]} 52... Kg5 {[%clk 0:00:12.5]} 53. Kg1 {[%clk 0:00:32.6]} 53... Kh4
{[%clk 0:00:12.6]} 54. Kh2 {[%clk 0:00:32.6]} 54... Rb2 {[%clk 0:00:13.2]} 55.
Rf4+ {[%clk 0:00:32.5]} 55... Kg5 {[%clk 0:00:13.2]} 56. Ra4 {[%clk 0:00:33]}
56... Rb3 {[%clk 0:00:13.3]} 57. h4+ {[%clk 0:00:32.4]} 57... Kh5 {[%clk
0:00:13.6]} 58. g3 {[%clk 0:00:33.1]} 58... Rc3 {[%clk 0:00:13.2]} 59. Kh3
{[%clk 0:00:33.6]} 59... Rb3 {[%clk 0:00:13.6]} 60. Ra5+ {[%clk 0:00:33.9]}
60... Kg6 {[%clk 0:00:13.9]} 61. h5+ {[%clk 0:00:34.1]} 61... Kh6 {[%clk
0:00:14.3]} 62. Kh4 {[%clk 0:00:32.2]} 62... Rb4+ {[%clk 0:00:14.8]} 63. g4
{[%clk 0:00:32.5]} 63... Kg7 {[%clk 0:00:14.9]} 64. Ra6 {[%clk 0:00:31.4]} 64...
Kh7 {[%clk 0:00:15]} 65. h6 {[%clk 0:00:30.8]} 65... Rb5 {[%clk 0:00:15.3]} 66.
Rf6 {[%clk 0:00:24.4]} 66... Rc5 {[%clk 0:00:14.9]} 67. g5 {[%clk 0:00:21.6]}
67... Kg8 {[%clk 0:00:14.9]} 68. g6 {[%clk 0:00:20.8]} 68... Rb5 {[%clk
0:00:14.5]} 69. Ra6 {[%clk 0:00:20.2]} 69... Rb4+ {[%clk 0:00:14.6]} 70. Kg5
{[%clk 0:00:20.2]} 70... Rb5+ {[%clk 0:00:15.1]} 71. Kf4 {[%clk 0:00:20.8]}
71... Rb4+ {[%clk 0:00:15.4]} 72. Ke5 {[%clk 0:00:21.3]} 72... Rb5+ {[%clk
0:00:15.8]} 73. Ke6 {[%clk 0:00:20.8]} 73... Rb8 {[%clk 0:00:14.3]} 74. Rd6
{[%clk 0:00:21]} 74... Re8+ {[%clk 0:00:13.8]} 75. Kd7 {[%clk 0:00:21.1]} 75...
Ra8 {[%clk 0:00:12.9]} 76. Ke7 {[%clk 0:00:21.7]} 76... Ra7+ {[%clk 0:00:10.3]}
77. Rd7 {[%clk 0:00:22]} 1-0

[Event "Early-Titled-Tuesday-Blitz-March-05-2024"]
[Site "Chess.com"]
[Date "2024.03.05"]
[Round "6"]
[White "ajeale2"]
[Black "IlanSchnaider"]
[Result "1-0"]
[WhiteElo "2505"]
[BlackElo "2646"]
[TimeControl "180+1"]
[EndTime "9:10:25 PST"]
[Termination "ajeale2 won on time"]

1. e4 {[%clk 0:03:00.9]} 1... c5 {[%clk 0:02:58.9]} 2. Nc3 {[%clk 0:03:01]} 2...
d6 {[%clk 0:02:58.8]} 3. g3 {[%clk 0:03:01.4]} 3... g6 {[%clk 0:02:56.5]} 4. Bg2
{[%clk 0:03:02]} 4... Bg7 {[%clk 0:02:55.9]} 5. Nge2 {[%clk 0:03:02.7]} 5... Nc6
{[%clk 0:02:53.4]} 6. O-O {[%clk 0:03:03.2]} 6... e6 {[%clk 0:02:53]} 7. d3
{[%clk 0:03:03.6]} 7... Nge7 {[%clk 0:02:53.4]} 8. Be3 {[%clk 0:03:04.2]} 8...
O-O {[%clk 0:02:53.3]} 9. Qd2 {[%clk 0:03:04.8]} 9... Rb8 {[%clk 0:02:49.9]} 10.
Rab1 {[%clk 0:02:54.3]} 10... b5 {[%clk 0:02:47.4]} 11. f4 {[%clk 0:02:54]}
11... b4 {[%clk 0:02:45.7]} 12. Nd1 {[%clk 0:02:54]} 12... Nd4 {[%clk 0:02:46]}
13. Nf2 {[%clk 0:02:14.9]} 13... f5 {[%clk 0:02:19.5]} 14. Nh3 {[%clk
0:02:06.1]} 14... Bd7 {[%clk 0:02:07.3]} 15. Ng5 {[%clk 0:01:48.4]} 15... h6
{[%clk 0:02:00.4]} 16. Nf3 {[%clk 0:01:47.7]} 16... Nxe2+ {[%clk 0:01:54.3]} 17.
Qxe2 {[%clk 0:01:47.4]} 17... fxe4 {[%clk 0:01:55.2]} 18. dxe4 {[%clk
0:01:47.8]} 18... Bb5 {[%clk 0:01:55.6]} 19. Qd2 {[%clk 0:01:37.1]} 19... Bxf1
{[%clk 0:01:54.7]} 20. Bxf1 {[%clk 0:01:37.5]} 20... Kh7 {[%clk 0:01:31]} 21.
Bd3 {[%clk 0:01:34.9]} 21... Qc7 {[%clk 0:01:13.7]} 22. b3 {[%clk 0:01:35.2]}
22... d5 {[%clk 0:01:10.4]} 23. e5 {[%clk 0:01:26.9]} 23... Nf5 {[%clk
0:01:04.7]} 24. Bf2 {[%clk 0:01:27]} 24... c4 {[%clk 0:00:41.1]} 25. bxc4 {[%clk
0:01:26.8]} 25... dxc4 {[%clk 0:00:42]} 26. Be4 {[%clk 0:01:27.4]} 26... Rfd8
{[%clk 0:00:42.5]} 27. Qe1 {[%clk 0:01:21.4]} 27... Qf7 {[%clk 0:00:27.2]} 28.
h4 {[%clk 0:01:19.6]} 28... Kg8 {[%clk 0:00:22.1]} 29. Rxb4 {[%clk 0:01:08.6]}
29... Rxb4 {[%clk 0:00:21]} 30. Qxb4 {[%clk 0:01:08.3]} 30... Qc7 {[%clk
0:00:17.9]} 31. g4 {[%clk 0:00:58]} 31... Bf8 {[%clk 0:00:18.2]} 32. Qa4 {[%clk
0:00:48.4]} 32... Ne7 {[%clk 0:00:17.7]} 33. Qa6 {[%clk 0:00:47.6]} 33... Kf7
{[%clk 0:00:16.2]} 34. Nd4 {[%clk 0:00:47.9]} 34... Qc8 {[%clk 0:00:11.9]} 35.
Qxa7 {[%clk 0:00:46.9]} 35... Qd7 {[%clk 0:00:09.5]} 36. Qa6 {[%clk 0:00:40.9]}
36... Nd5 {[%clk 0:00:09.9]} 37. f5 {[%clk 0:00:36.8]} 37... Nc7 {[%clk
0:00:09]} 38. Qxc4 {[%clk 0:00:33.3]} 38... gxf5 {[%clk 0:00:07.3]} 39. gxf5
{[%clk 0:00:33.2]} 39... Be7 {[%clk 0:00:05.5]} 40. Kf1 {[%clk 0:00:16.1]} 40...
Rg8 {[%clk 0:00:01.8]} 41. fxe6+ {[%clk 0:00:16.2]} 41... Nxe6 {[%clk
0:00:02.2]} 42. Bf5 {[%clk 0:00:16.6]} 42... Qb7 {[%clk 0:00:01.3]} 43. Qxe6+
{[%clk 0:00:15.4]} 43... Kf8 {[%clk 0:00:01.7]} 44. Qc8+ {[%clk 0:00:13.8]}
44... Qxc8 {[%clk 0:00:02.3]} 45. Bxc8 {[%clk 0:00:14.5]} 45... Kg7 {[%clk
0:00:01.5]} 46. Nf5+ {[%clk 0:00:14.1]} 46... Kf7 {[%clk 0:00:01.4]} 47. Bb7
{[%clk 0:00:09.6]} 47... Rd8 {[%clk 0:00:01.4]} 48. Be4 {[%clk 0:00:08.4]} 48...
Rb8 {[%clk 0:00:01.5]} 49. a4 {[%clk 0:00:08]} 49... Rb1+ {[%clk 0:00:01.7]} 50.
Kg2 {[%clk 0:00:07.9]} 50... Ra1 {[%clk 0:00:02.6]} 51. Bc6 {[%clk 0:00:08.1]}
51... Rc1 {[%clk 0:00:02.1]} 52. Bd5+ {[%clk 0:00:06.6]} 52... Kf8 {[%clk
0:00:01.9]} 53. Bb3 {[%clk 0:00:07.1]} 53... Rd1 {[%clk 0:00:01.4]} 54. Nxh6
{[%clk 0:00:06.9]} 54... Rd2 {[%clk 0:00:01.7]} 55. Kf3 {[%clk 0:00:06.5]} 55...
Rd1 {[%clk 0:00:01.5]} 56. Nf5 {[%clk 0:00:06.8]} 56... Bb4 {[%clk 0:00:01.6]}
57. Be3 {[%clk 0:00:06.5]} 57... Rf1+ {[%clk 0:00:01.6]} 58. Ke4 {[%clk
0:00:06.5]} 58... Rh1 {[%clk 0:00:02.1]} 59. Bh6+ {[%clk 0:00:06.1]} 59... Ke8
{[%clk 0:00:01.9]} 60. Bg5 {[%clk 0:00:06.8]} 60... Re1+ {[%clk 0:00:01.5]} 61.
Kd5 {[%clk 0:00:07]} 61... Rd1+ {[%clk 0:00:01.9]} 62. Ke6 {[%clk 0:00:07.4]}
62... Rd7 {[%clk 0:00:01.9]} 63. h5 {[%clk 0:00:06.1]} 63... Ra7 {[%clk
0:00:01.4]} 64. Nd6+ {[%clk 0:00:05]} 64... Kf8 {[%clk 0:00:01.2]} 65. h6 {[%clk
0:00:04.1]} 65... Rc7 {[%clk 0:00:01.6]} 66. Bf6 {[%clk 0:00:03.9]} 1-0